Cogmind - Beta 9.2 @@@ ROGUE MODE // 2019.11.26 @ 17:11:21 Player: Veon Result: Destroyed by G-34 Mercenary with Small Laser Performance ------------- Evolutions (0) 0 Regions Visited (1) 200 Robots Destroyed (18) 90 Value Destroyed (408) 408 Prototype IDs (0) 0 Alien Tech Used (0) 0 Bonus (0) 0 TOTAL SCORE: 698 Bonus ------- None Cogmind --------- Core Integrity 0/250 Matter 280/300 Energy 96/100 System Corruption 0% Temperature Cool (6) Movement Core (350) Ox6 Location -10/Materials Parts ------- > --- POWER (1) -------- (None) > --- PROPULSION (2) --- (None) > --- UTILITY (2) ------ Medium Storage Unit Medium Storage Unit > --- WEAPON (2) ------- Mining Claw Mining Claw > --- INVENTORY (12) --- Ion Engine Aluminum Leg Aluminum Leg Aluminum Leg Aluminum Leg Wheel Wheel Heat Sink Improved Heat Sink Medium Storage Unit Peak State ------------ > --- POWER ------------ Light Nuclear Core > --- PROPULSION ------- Aluminum Leg Aluminum Leg > --- UTILITY ---------- Medium Storage Unit Medium Storage Unit > --- WEAPON ----------- Backup Laser I Backup Laser I > --- INVENTORY -------- Ion Engine Aluminum Leg Aluminum Leg Aluminum Leg Aluminum Leg Wheel Wheel Heat Sink Improved Heat Sink Medium Storage Unit [Rating: 10] Favorites ----------- Power Light Ion Engine Engine Light Ion Engine Power Core Light Nuclear Core Propulsion Aluminum Leg Treads Light Treads Leg Aluminum Leg Wheel Wheel Utility Medium Storage Unit Storage Medium Storage Unit Weapon Assault Rifle Energy Gun Medium Laser Ballistic Gun Assault Rifle Slashing Weapon Mining Claw Build | -11 -10 ------- Run | Scr Mat Slots Evolved . | . . Power . | . . Propulsion . | . . Utility . | . . Weapon . | . . Parts Attached 20 | 5 15 Power 3 | 1 2 Engine 2 | 1 1 Core 1 | . 1 Reactor . | . . Propulsion 9 | 2 7 Treads 3 | . 3 Leg 4 | 2 2 Wheel 2 | . 2 Hover . | . . Flight . | . . Utility 2 | . 2 Device . | . . Storage 2 | . 2 Processor . | . . Hackware . | . . Protection . | . . Artifact . | . . Weapon 6 | 2 4 Energy Gun 3 | 2 1 Energy Cannon . | . . Ballistic Gun 1 | . 1 Ballistic Cannon . | . . Launcher . | . . Special Weapon . | . . Impact Weapon . | . . Slashing Weapon 2 | . 2 Piercing Weapon . | . . Special Melee Weapon . | . . Unidentified Prototypes . | . . Parts Lost 7 | . 7 Power 1 | . 1 Propulsion 2 | . 2 Utility . | . . Weapon 4 | . 4 Highest Loss Streak 5 | . 5 Average Slot Usage (%) 93 | . 93 Engine 7 | . 7 Core 5 | . 5 Treads 6 | . 6 Leg 18 | . 18 Wheel 2 | . 2 Storage 27 | . 27 Energy Gun 13 | . 13 Ballistic Gun 9 | . 9 Naked Turns . | . . Heaviest Build 23 | 6 23 Greatest Support 40 | 20 40 Greatest Overweight (x) 6 | . 6 Average Overweight (x) . | . . Largest Inventory Capacity 12 | 4 12 Average Capacity 10 | 4 11 Most Carried 12 | 4 12 Average Carried 5 | 2 6 Final Capacity 12 | 4 12 Final Carried 10 | 4 10 Class Distribution -------------------- 100% | Mutant Dominant Class ---------------- Mutant | -10/Materials Resources | -11 -10 ----------- Run | Scr Mat Matter Collected 503 | 250 253 Remotely . | . . Salvage Created 549 | 94 455 Parts 44 | 5 39 Haulers Intercepted 1 | . 1 Recyclers Shooed . | . . Parts Field Recycled . | . . Retrieved Matter . | . . Parts Self-Destructed . | . . Prevented . | . . Kills | -11 -10 ------- Run | Scr Mat Combat Hostiles Destroyed 12 | 1 11 Guns 12 | 1 11 Classes Destroyed 7 | 2 5 Worker 1 | . 1 Tunneler 2 | 2 . Hauler 1 | . 1 Mechanic 1 | . 1 Watcher 1 | . 1 Swarmer 3 | . 3 Grunt 9 | 1 8 Best Kill Streak 4 | 3 4 Combat Bots Only 3 | 1 3 Max Kills in Single Turn 2 | 1 2 Gunslinging 1 | . 1 Exploded . | . . Melee . | . . Uniques/NPCs Destroyed . | . . Combat | -11 -10 -------- Run | Scr Mat Damage Taken 1067 | 22 1045 Core 257 | . 257 Absorbed by Shields . | . . Core Remaining (%) 100 | 100 . Volleys Fired 78 | 12 66 Largest 2 | 2 2 Hottest 90 | 90 70 Shots Fired 118 | 19 99 Gun 118 | 19 99 Cannon . | . . Launcher . | . . Special . | . . Kinetic 45 | . 45 Thermal 73 | 19 54 Explosive . | . . Electromagnetic . | . . Robot Hit Streak 16 | 6 16 Robot Miss Streak 3 | 1 3 Penetration Max . | . . Secondary Targets 1 | . 1 Max Gunslinging Chain 1 | . 1 Shots Hit Robots 83 | 14 69 Core Hits 33 | 4 29 Critical Hits . | . . Critical Kills . | . . Critical Parts Destroyed . | . . Melee Attacks 2 | . 2 Impact . | . . Slashing 2 | . 2 Piercing . | . . Sneak Attacks . | . . Combat Hostiles . | . . Follow-up Attacks . | . . Damage Inflicted 1034 | 180 854 Guns 1033 | 180 853 Cannons . | . . Explosions . | . . Melee . | . . Ramming 1 | . 1 Kinetic 416 | . 416 Thermal 617 | 180 437 Explosive . | . . Electromagnetic . | . . Impact . | . . Slashing . | . . Piercing . | . . Highest Corruption . | . . Average Corruption . | . . Corruption Purged . | . . Overload Shots . | . . Overflow Damage . | . . Projectiles . | . . Explosions . | . . Melee . | . . Knockbacks . | . . Impact . | . . Kinetic . | . . Secondary . | . . Self-Inflicted Damage . | . . Shots . | . . Rammed . | . . Targets Rammed 1 | . 1 Kicked 1 | . 1 Crushed . | . . Highest Temperature 272 | 272 115 Average Temperature 63 | 152 38 Received Heat Transfer 477 | 12 465 Effects 3 | 3 . Energy Bleed 1 | 1 . Interference 2 | 2 . Siege Activations . | . . Robots Corrupted . | . . Combat Hostiles . | . . Parts Fried . | . . Impact Corruptions . | . . Robots Melted . | . . Combat Hostiles . | . . Parts Melted 3 | . 3 Heat Transferred 1732 | 519 1213 Parts Sabotaged . | . . Parts Stolen . | . . Parts Stripped . | . . Power Chain Reactions . | . . Missiles Intercepted . | . . Alert | -11 -10 ------- Run | Scr Mat Peak Influence 188 | 30 188 Average Influence 67 | 8 78 Maximum Alert Level . | . . Low Security (%) 100 | 100 100 Level 1 . | . . Level 2 . | . . Level 3 . | . . Level 4 . | . . Level 5 . | . . High Security . | . . Max Security . | . . Squads Dispatched 3 | . 3 Investigation 1 | . 1 Extermination . | . . Reinforcement 2 | . 2 Assault . | . . Garrison . | . . Intercept . | . . Construction Impeded . | . . Haulers Reinforced . | . . Stealth | -11 -10 --------- Run | Scr Mat Distress Signals 3 | . 3 Communications Jammed . | . . Distress Signals . | . . Times Spotted 23 | 1 22 Peak Tracking Total 5 | 1 5 Tactical Retreats . | . . Traps | -11 -10 ------- Run | Scr Mat Traps Triggered 2 | . 2 Indirectly . | . . Trap Hack Attempts . | . . Triggered . | . . Disarmed . | . . Reprogrammed . | . . Reused . | . . Traps Extracted . | . . Installed . | . . Triggered . | . . Machines | -11 -10 ---------- Run | Scr Mat Machines Disabled . | . . Max in Single Turn . | . . Machines Sabotaged . | . . Garrisons Compromised . | . . Overloaded Fab Kills . | . . Fab Network Shutdowns . | . . Hacking | -11 -10 --------- Run | Scr Mat Machines Accessed 3 | . 3 Terminals 2 | . 2 Fabricators . | . . Repair Stations 1 | . 1 Recycling Units . | . . Scanalyzers . | . . Garrison Access . | . . Total Hacks 13 | . 13 Successful 7 | . 7 Failed 6 | . 6 Catastrophic 2 | . 2 Database Lockouts . | . . Manual 5 | . 5 Terminals 9 | . 9 Fabricators . | . . Repair Stations 4 | . 4 Recycling Units . | . . Scanalyzers . | . . Garrison Access . | . . Terminal Hacks 3 | . 3 Locate Traps 1 | . 1 Zone Layout 2 | . 2 Fabricator Hacks . | . . Repair Station Hacks 4 | . 4 Scan Component 2 | . 2 Repair 1 | . 1 Refit 1 | . 1 Recycling Unit Hacks . | . . Scanalyzer . | . . Garrison Access Hacks . | . . Unauthorized Hacks 1 | . 1 Terminals . | . . Fabricators . | . . Repair Stations . | . . Recycling Units . | . . Scanalyzers . | . . Garrison Access . | . . Data Cores Recovered . | . . Used . | . . Hacking Detections 3 | . 3 Full Trace Events 3 | . 3 Feedback Events . | . . Feedback Blocked . | . . Robot Schematics Acquired . | . . Robots Built . | . . Matter . | . . Time . | . . Total Robot Build Rating . | . . Part Schematics Acquired . | . . Parts Built . | . . Matter . | . . Time . | . . Total Part Build Rating . | . . Parts Repaired 1 | . 1 Time 26 | . 26 Parts Recycled . | . . Recycled Matter . | . . Retrieved Matter . | . . Retrieved Components . | . . Parts Scanalyzed . | . . Part Schematics Acquired . | . . Parts Damaged . | . . Bothacking | -11 -10 ------------ Run | Scr Mat Used RIF Installer . | . . Robots Hacked . | . . Non-combat . | . . Combat . | . . Robot Hacks Applied . | . . Relay Couplers Released . | . . Robots Rewired . | . . Allies Hacked . | . . Hacks Repelled . | . . Allies | -11 -10 -------- Run | Scr Mat Total Allies . | . . Largest Group . | . . Highest-Rated Group . | . . Highest-Rated Ally . | . . Total Orders . | . . Ally Attacks . | . . Total Damage . | . . Kills . | . . Allies Corrupted . | . . Allies Melted . | . . Intel | -11 -10 ------- Run | Scr Mat Robot Analysis Total . | . . Derelict Logs Recovered . | . . Drone Launches . | . . Drone Recoveries . | . . Exploration | -11 -10 ------------- Run | Scr Mat Turns Passed 986 | 154 832 Spaces Moved 478 | 94 384 Core 26 | 24 2 Treads 79 | . 79 Legs 373 | 70 303 Wheels . | . . Hover . | . . Flight . | . . Fastest Speed 50 | 50 120 Average Speed 144 | 102 154 Slowest Speed 350 | 120 350 Overloaded Moves . | . . Propulsion Burnouts . | . . Robots Hopped . | . . Cave-ins Triggered . | . . Exploration Rate (%) 27 | 6 48 Regions Visited 1 Branch Regions . Pre-discovered Areas . | . . Known Exits Taken . | . . Unknown Exits Taken 1 | 1 . Scrap Searched . | . . Spaces Dug . | . . Terrain Destroyed . | . . Melee . | . . Projectile . | . . AOE . | . . Actions | -11 -10 --------- Run | Scr Mat Total 654 | 133 521 Wait 45 | 14 31 Move 477 | 93 384 Hop . | . . Pick Up 25 | 9 16 Fast Attach . | . . Attach 13 | 5 8 Detach 1 | . 1 Swap 7 | . 7 Drop 5 | . 5 Fire 78 | 12 66 Melee 2 | . 2 Ram . | . . Kick 1 | . 1 Crush . | . . Escape Stasis . | . . Rewire . | . . Trap . | . . Miscellaneous . | . . Route ------- -11/Scrapyard -10/Materials (discovered 1 exit: [*Mat]) History --------- Turn | Location | Event 2 | -11/Scrapyard | Met Revision 17 91 | -11/Scrapyard | Discovered new exit (range 8) 155 | -11/Scrapyard | Entered Materials 309 | -10/Materials | Build established: Mutant 804 | -10/Materials | Core integrity fell below 50% 866 | -10/Materials | Repaired Sml. Laser? 892 | -10/Materials | Discovered new exit (range 16) 981 | -10/Materials | Core integrity fell below 20% 987 | -10/Materials | Destroyed by G-34 Mercenary with Small Laser Last Messages --------------- ALERT: Alarm triggered, dispatching investigation squad. Door malfunctions. Backup Laser I destroyed. U-05 Engineer lays Concrete. U-05 Engineer repairs door. Acquired Mining Claw. Fusion Modulator explodes. G-34 Mercenary destroyed. Lgt. Nuclear Core destroyed. Aluminum Leg destroyed. Backup Laser I destroyed. Only a single melee weapon may be active at a time, Mining Claw automatically deactivated. (Secondary inactive melee weapons have a chance to conduct follow-up attacks, see the manual.) U-05 Engineer builds a Wall. U-05 Engineer lays Concrete. U-05 Engineer builds a Wall. U-05 Engineer lays Concrete. U-05 Engineer builds a Door. U-05 Engineer builds a Wall. Map ----- +----------------------------------------------------+ | ??"" ??""" #????????# #?????????# #???????? | | ??""" """"" #????????# #?????????# #???????? | | ??""" """"" #????????# #?????????# #???????? | | ?"""" """"" +????????# #?????????# ######### | | """ """ #????????# #?????????# # | | #????????# #?????????# # """ | | %% ########## ########### # """"" | | ?##########% = # """"" | | ?# # + """"" | | ?# """ # % ! # """ | | ?# """ #% ########################## # | | ?# """ #^ ##???????????????????????# # | | ?# #! ##???????????????????????# ##+###### | | ?# """ / ########?????????????????# # %* | | ?# """ # # ##????????????????# # = | | ?#! """ # # "#?????????######## # | | ?# # # """ T#?????????# """ # # | | ?########## %# R" "#?????????# """ # ##+#####+ | | ??????????# %+ =""" ##?????????# """ +^ ^ | | ??????????# # ####???????# # ^ ^ | | ??????????# ######### #####???# # """ | | ??????????# ; #???# # """ | | ??????????# #;;;;;;;;##??######## """ ! | | ??????????# w u; #?????????# | | ??????????######% ; #?????????# | | ???????????????# ; %@! #??????####+##+## | | ???????????????# # g #??????# # | | ??????########## u g #??????# T # | | ??????#! # u# #??????# # | | ??????# """"" # # #??????# !!! # | | ??????# """"" # # #??????# !!! # | | ??????# """"" # ################## !! # | | ??????# """"" + #?????????# ## # | | ??????#! """"" # #??????#### " ## # | | ??????# """"" # #?????? ## """ ## # | | ??????# """"" # #?????? ## """ ########+## | | ??????# # #?????? ## """ # | | ??????########## #?????? ## "" + | | ???????????????# +?????? ## """ # T | | ???????????????# < #?????? ## "" # | | ???????????????# #?????? ## "" # | | ???????????????#####?????? ## " # ! | | ?????????????????????????? ## # !! ### | | ??????????????????????????#### # !! #?# | | ?????????????????????????????################?# | | ??????????????????????????????????????????????#### | | ?????????????????????????????????????????????????? | | ?????????????????????????????????????????????????? | | ?????????????????????????????????????????????????? | | ?????????????????????????????????????????????????? | +----------------------------------------------------+ Best States ------------- Heat Dissipation 25 Energy Generation 14 Energy Capacity 160 Matter Stores 300 Matter Capacity 300 Sight Range 16 Terrain Scan Density 10 Evasion (%) 50 Recoil Reduction 2 Item Schematics ----------------- None Robot Schematics ------------------ None Fabricated ------------ Nothing Alien Tech Used ----------------- None Achievements -------------- None Challenges ------------ None Game ------ Seed FlyingSlugVibroblade Manual? 0 Play Time 00:14:22 Cumulative 2.7 hours Start 2019.11.26 @ 04:08:31 End 2019.11.26 @ 17:11:21 Sessions 2 Manual Loads 0 Difficulty Rogue Special Mode None Game No. 3 Rogue 3 Adventurer 0 Explorer 0 Win Type - Total 0 Types 0/0/0/0/0/0/0 Lore% 1 Gallery% 5 Achievement% 7 Wizard Run 0 Options --------- ASCII 0 Keyboard 0 Movement Numpad Keybinds 0 Fullscreen 1 Font 24/Terminus Map View 76x50 Tactical HUD 0 Map Filters NONE Filters NONE Steam 1 RUN: 7f232abe-979b-495c-8289-e973b3095d8d